Cogmind - Beta 11 X7 @@@ ROGUE MODE // 2021.09.19 @ 18:39:56 Player: Plexion Result: Destroyed by DAS Turret with DAS Cannon Performance ------------- Evolutions (1) 500 Regions Visited (5) 1000 Robots Destroyed (50) 250 Value Destroyed (1191) 1191 Prototype IDs (26) 520 Alien Tech Used (0) 0 Bonus (357) 357 TOTAL SCORE: 3818 Bonus ------- High Alert Combat Kills 57 Aligned with FarCom 300 Cogmind --------- Core Integrity 0/400 Matter 120/300 Energy 65/100 System Corruption 0% Temperature Cool (30) Movement Treading (260) Ox1 Location -9/Exiles Parts ------- > --- POWER (1) -------- (None) > --- PROPULSION (2) --- Light Treads > --- UTILITY (4) ------ Large Storage Unit > --- WEAPON (2) ------- Advanced Beam Cannon Longsword +1 > --- INVENTORY (15) --- Cooled Ion Engine Reinforced Fission Core Light Treads Improved Treads Improved Treads Experimental Sensor Array Experimental Targeting Computer Advanced Weapon Cycler Advanced Beam Cannon Assault Rifle Heavy Assault Rifle Heavy Assault Rifle Autogun Peak State ------------ > --- POWER ------------ Cooled Ion Engine > --- PROPULSION ------- Improved Treads Improved Treads > --- UTILITY ---------- Large Storage Unit Light Armor Plating Medium Armor Plating Medium Armor Plating > --- WEAPON ----------- Heavy Assault Rifle Longsword +1 > --- INVENTORY -------- Cooled Ion Engine Light Treads Light Treads Improved Treads Improved Treads Heat Sink Assault Rifle Heavy Assault Rifle Autogun Grenade Launcher [Rating: 24] Favorites ----------- Power Cooled Ion Engine Engine Cooled Ion Engine Propulsion Improved Treads Treads Improved Treads Utility Heat Sink Device Heat Sink Storage Large Storage Unit Protection Medium Armor Plating Weapon Advanced Beam Cannon Energy Gun EM Shotgun Energy Cannon Advanced Beam Cannon Ballistic Gun Heavy Assault Rifle Launcher Grenade Launcher Slashing Weapon Longsword +1 Build | -11 -10 -10 -9 -9 -9 ------- Run | Scr Mat Min Mat Min Exi Slots Evolved 2 | . . . 2 . . Power . | . . . . . . Propulsion . | . . . . . . Utility 2 | . . . 2 . . Weapon . | . . . . . . Parts Attached 45 | 6 6 4 20 . 9 Power 2 | 1 . . 1 . . Engine 2 | 1 . . 1 . . Core . | . . . . . . Reactor . | . . . . . . Propulsion 5 | 2 . . 2 . 1 Treads 5 | 2 . . 2 . 1 Leg . | . . . . . . Wheel . | . . . . . . Hover . | . . . . . . Flight . | . . . . . . Utility 15 | 1 2 2 7 . 3 Device 7 | . 1 2 3 . 1 Storage 2 | 1 1 . . . . Processor . | . . . . . . Hackware . | . . . . . . Protection 6 | . . . 4 . 2 Artifact . | . . . . . . Weapon 23 | 2 4 2 10 . 5 Energy Gun 6 | 1 3 1 1 . . Energy Cannon 7 | . . . 6 . 1 Ballistic Gun 2 | 1 . . . . 1 Ballistic Cannon . | . . . . . . Launcher 7 | . 1 1 3 . 2 Special Weapon . | . . . . . . Impact Weapon . | . . . . . . Slashing Weapon 1 | . . . . . 1 Piercing Weapon . | . . . . . . Special Melee Weapon . | . . . . . . Unidentified Prototypes 3 | . . 1 2 . . Parts Lost 10 | . . . 2 . 8 Power 1 | . . . . . 1 Propulsion 2 | . . . . . 2 Utility 6 | . . . 2 . 4 Weapon 1 | . . . . . 1 Highest Loss Streak 4 | . . . 1 . 4 Average Slot Usage (%) 96 | . 93 100 95 100 96 Engine 11 | . 14 14 10 11 10 Treads 23 | . 28 28 22 22 21 Device 16 | . 8 14 20 22 17 Storage 11 | . 14 14 11 11 11 Protection 7 | . . . 9 11 12 Energy Gun 7 | . 26 28 . . . Energy Cannon 12 | . . . 20 22 11 Ballistic Gun 1 | . . . . . 4 Launcher 1 | . . . . . 3 Naked Turns . | . . . . . . Heaviest Build 51 | 13 32 32 51 41 45 Greatest Support 46 | 40 40 40 46 46 46 Greatest Overweight (x) 1 | . . . 1 . . Average Overweight (x) . | . . . . . . Largest Inventory Capacity 15 | 8 15 15 15 15 15 Average Capacity 13 | 6 9 15 15 15 15 Most Carried 15 | 2 13 14 15 14 15 Average Carried 12 | 1 6 13 14 14 12 Final Capacity 15 | 8 15 15 15 15 15 Final Carried 14 | 2 13 14 14 14 13 Class Distribution -------------------- 97% | Mutant Dominant Class ---------------- Mutant | -10/Materials Mutant | -10/Mines Mutant | -9/Materials Mutant | -9/Mines Mutant | -9/Exiles Resources | -11 -10 -10 -9 -9 -9 ----------- Run | Scr Mat Min Mat Min Exi Matter Collected 763 | 224 106 55 265 . 113 Remotely . | . . . . . . Salvage Created 1547 | . 368 57 1017 . 105 Parts 107 | . 29 13 63 . 2 Haulers Intercepted 2 | . . . 2 . . Recyclers Shooed . | . . . . . . Parts Field Recycled . | . . . . . . Retrieved Matter . | . . . . . . Parts Self-Destructed . | . . . . . . Prevented . | . . . . . . Kills | -11 -10 -10 -9 -9 -9 ------- Run | Scr Mat Min Mat Min Exi Combat Hostiles Destroyed 47 | . 12 6 25 . 4 Melee 1 | . . . . . 1 Guns 13 | . 8 3 2 . . Cannons 15 | . . . 15 . . AOE 17 | . 4 3 7 . 3 Classes Destroyed 10 | . 4 . 5 . 1 Builder 1 | . 1 . . . . Tunneler 1 | . . . 1 . . Hauler 2 | . . . 2 . . Recycler 1 | . . . 1 . . Watcher 1 | . 1 . . . . Swarmer 19 | . 6 6 7 . . Grunt 18 | . 6 . 12 . . Duelist 2 | . . . 2 . . Sentry 4 | . . . 4 . . Assembled 3 | . . . . . 3 Best Kill Streak 6 | . 3 3 6 . 3 Combat Bots Only 5 | . 3 3 5 . 3 Max Kills in Single Turn 3 | . 3 2 3 . 2 Gunslinging 1 | . . . 1 . . Exploded 3 | . 3 2 3 . 2 Melee 1 | . . . . . 1 Uniques/NPCs Destroyed 1 | . . . . . 1 8R-AWN (-9/Exiles) Combat | -11 -10 -10 -9 -9 -9 -------- Run | Scr Mat Min Mat Min Exi Damage Taken 2519 | . 288 100 997 . 1134 Core 503 | . 56 10 152 . 285 Absorbed by Shields . | . . . . . . Core Remaining (%) 86 | 100 . 73 . . . Volleys Fired 126 | . 24 6 68 . 28 Largest 2 | . 2 2 2 . 1 Hottest 136 | . 90 90 136 . 68 Shots Fired 215 | . 47 10 130 . 28 Gun 63 | . 46 8 8 . 1 Cannon 119 | . . . 116 . 3 Launcher 33 | . 1 2 6 . 24 Special . | . . . . . . Kinetic 1 | . . . . . 1 Thermal 119 | . . . 116 . 3 Explosive 33 | . 1 2 6 . 24 Electromagnetic 62 | . 46 8 8 . . Robot Hit Streak 13 | . 13 8 13 . 3 Robot Miss Streak 7 | . 7 2 3 . 2 Penetration Max . | . . . . . . Secondary Targets 1 | . . . 1 . . Max Gunslinging Chain 1 | . . . 1 . . Shots Hit Robots 167 | . 36 6 87 . 38 Core Hits 88 | . 23 8 34 . 23 Critical Kills 1 | . . . 1 . . Critical Parts Destroyed . | . . . . . . Critical Strikes 2 | . . . 1 . 1 Meltdown 1 | . . . 1 . . Sever 1 | . . . . . 1 Melee Attacks 37 | . . . . . 37 Impact . | . . . . . . Slashing 37 | . . . . . 37 Piercing . | . . . . . . Sneak Attacks . | . . . . . . Combat Hostiles . | . . . . . . Follow-up Attacks . | . . . . . . Damage Inflicted 4969 | . 622 154 2107 . 2086 Guns 592 | . 445 49 98 . . Cannons 1682 | . . . 1640 . 42 Explosions 1156 | . 177 105 369 . 505 Melee 1539 | . . . . . 1539 Ramming . | . . . . . . Kinetic . | . . . . . . Thermal 1752 | . 70 . 1640 . 42 Explosive 1086 | . 107 105 369 . 505 Electromagnetic 592 | . 445 49 98 . . Impact . | . . . . . . Slashing 1539 | . . . . . 1539 Piercing . | . . . . . . Highest Corruption . | . . . . . . Average Corruption . | . . . . . . Corruption Purged . | . . . . . . Overload Shots . | . . . . . . Overflow Damage 20 | . . . 14 . 6 Projectiles 14 | . . . 14 . . Explosions 6 | . . . . . 6 Melee . | . . . . . . Knockbacks . | . . . . . . Impact . | . . . . . . Kinetic . | . . . . . . Secondary . | . . . . . . Self-Inflicted Damage 127 | . . . 75 . 52 Shots 5 | . . . 3 . 2 Rammed . | . . . . . . Targets Rammed . | . . . . . . Kicked . | . . . . . . Crushed . | . . . . . . Highest Temperature 294 | . 255 . 294 . 30 Average Temperature 57 | . 82 . 50 . 18 Received Heat Transfer 381 | . 93 . 288 . . Siege Activations . | . . . . . . Robots Corrupted . | . . . . . . Combat Hostiles . | . . . . . . Parts Fried 2 | . 1 . 1 . . Impact Corruptions . | . . . . . . Robots Melted 1 | . . . 1 . . Combat Hostiles 1 | . . . 1 . . Parts Melted 8 | . 1 . 7 . . Heat Transferred 3084 | . 50 . 2960 . 74 Parts Sabotaged . | . . . . . . Parts Stolen . | . . . . . . Parts Stripped . | . . . . . . Power Chain Reactions 1 | . 1 . . . . Missiles Intercepted . | . . . . . . Alert | -11 -10 -10 -9 -9 -9 ------- Run | Scr Mat Min Mat Min Exi Peak Influence 486 | . 197 226 486 169 . Initial 169 | . . 56 87 169 . Average 210 | . 71 145 320 169 . Maximum Alert Level 2 | . . 1 2 . . Low Security (%) 46 | 100 100 64 1 100 . Level 1 47 | . . 35 85 . . Level 2 6 | . . . 12 . . Level 3 . | . . . . . . Level 4 . | . . . . . . Level 5 . | . . . . . . High Security . | . . . . . . Max Security . | . . . . . . Squads Dispatched 6 | . 4 . 2 . . Investigation 2 | . 2 . . . . Extermination . | . . . . . . Reinforcement 4 | . 2 . 2 . . Assault . | . . . . . . Garrison . | . . . . . . Intercept . | . . . . . . Construction Impeded . | . . . . . . Haulers Reinforced . | . . . . . . Active Scanning Responses . | . . . . . . Cargo Convoy Interrupts . | . . . . . . Stealth | -11 -10 -10 -9 -9 -9 --------- Run | Scr Mat Min Mat Min Exi Distress Signals 2 | . 1 . 1 . . Communications Jammed . | . . . . . . Distress Signals . | . . . . . . Times Spotted 89 | . 18 6 35 . 30 Peak Tracking Total 9 | . 3 3 6 . 9 Tactical Retreats 6 | . . . 2 . 4 Traps | -11 -10 -10 -9 -9 -9 ------- Run | Scr Mat Min Mat Min Exi Traps Triggered 2 | . 2 . . . . Indirectly . | . . . . . . Trap Hack Attempts . | . . . . . . Triggered . | . . . . . . Disarmed . | . . . . . . Reprogrammed . | . . . . . . Reused . | . . . . . . Traps Extracted . | . . . . . . Installed . | . . . . . . Triggered . | . . . . . . Exploded 3 | . . . . . 3 Machines | -11 -10 -10 -9 -9 -9 ---------- Run | Scr Mat Min Mat Min Exi Machines Disabled 10 | . . 2 3 . 5 Max in Single Turn 1 | . . 1 1 . 1 Machines Sabotaged . | . . . . . . Garrisons Compromised . | . . . . . . Overloaded Fab Kills . | . . . . . . Fab Network Shutdowns . | . . . . . . Hacking | -11 -10 -10 -9 -9 -9 --------- Run | Scr Mat Min Mat Min Exi Machines Accessed 3 | . . . 1 . 2 Terminals 1 | . . . 1 . . Fabricators . | . . . . . . Repair Stations . | . . . . . . Recycling Units . | . . . . . . Scanalyzers . | . . . . . . Garrison Access . | . . . . . . Total Hacks 3 | . . . 1 . 2 Successful 2 | . . . . . 2 Failed 1 | . . . 1 . . Catastrophic . | . . . . . . Database Lockouts . | . . . . . . Manual 2 | . . . 1 . 1 Terminals 1 | . . . 1 . . Fabricators . | . . . . . . Repair Stations . | . . . . . . Recycling Units . | . . . . . . Scanalyzers . | . . . . . . Garrison Access . | . . . . . . Terminal Hacks 2 | . . . . . 2 Record 1 | . . . . . 1 EX-Prototype ID Bank 1 | . . . . . 1 Fabricator Hacks . | . . . . . . Repair Station Hacks . | . . . . . . Recycling Unit Hacks . | . . . . . . Scanalyzer . | . . . . . . Garrison Access Hacks . | . . . . . . Unauthorized Hacks . | . . . . . . Terminals . | . . . . . . Fabricators . | . . . . . . Repair Stations . | . . . . . . Recycling Units . | . . . . . . Scanalyzers . | . . . . . . Garrison Access . | . . . . . . Data Cores Recovered . | . . . . . . Used . | . . . . . . Hacking Detections 1 | . . . 1 . . Full Trace Events . | . . . . . . Feedback Events . | . . . . . . Feedback Blocked . | . . . . . . Robot Schematics Acquired . | . . . . . . Robots Built . | . . . . . . Matter . | . . . . . . Time . | . . . . . . Total Robot Build Rating . | . . . . . . Part Schematics Acquired . | . . . . . . Parts Built . | . . . . . . Matter . | . . . . . . Time . | . . . . . . Total Part Build Rating . | . . . . . . Parts Repaired . | . . . . . . Time . | . . . . . . Parts Recycled . | . . . . . . Recycled Matter . | . . . . . . Retrieved Matter . | . . . . . . Retrieved Components . | . . . . . . Parts Scanalyzed . | . . . . . . Part Schematics Acquired . | . . . . . . Parts Damaged . | . . . . . . Bothacking | -11 -10 -10 -9 -9 -9 ------------ Run | Scr Mat Min Mat Min Exi Used RIF Installer . | . . . . . . Robots Hacked . | . . . . . . Non-combat . | . . . . . . Combat . | . . . . . . Robot Hacks Applied . | . . . . . . Relay Couplers Released . | . . . . . . Robots Rewired . | . . . . . . Allies Hacked . | . . . . . . Hacks Repelled . | . . . . . . Allies | -11 -10 -10 -9 -9 -9 -------- Run | Scr Mat Min Mat Min Exi Total Allies . | . . . . . . Largest Group . | . . . . . . Highest-Rated Group . | . . . . . . Highest-Rated Ally . | . . . . . . Total Orders . | . . . . . . Ally Attacks . | . . . . . . Total Damage . | . . . . . . Kills . | . . . . . . Allies Corrupted . | . . . . . . Allies Melted . | . . . . . . Intel | -11 -10 -10 -9 -9 -9 ------- Run | Scr Mat Min Mat Min Exi Robot Analysis Total . | . . . . . . Derelict Logs Recovered 2 | . . . . 2 . Drone Launches . | . . . . . . Drone Recoveries . | . . . . . . Exploration | -11 -10 -10 -9 -9 -9 ------------- Run | Scr Mat Min Mat Min Exi Turns Passed 3945 | 77 714 346 1338 199 1271 Spaces Moved 2085 | 43 375 203 659 125 680 Core 3 | 3 . . . . . Treads 2082 | 40 375 203 659 125 680 Legs . | . . . . . . Wheels . | . . . . . . Hover . | . . . . . . Flight . | . . . . . . Fastest Speed 50 | 50 160 160 160 160 160 Average Speed 160 | 152 160 160 161 160 160 Slowest Speed 260 | 160 160 160 260 160 160 Overloaded Moves . | . . . . . . Propulsion Burnouts . | . . . . . . Robots Hopped . | . . . . . . Cave-ins Triggered . | . . . . . . Exploration Rate (%) 46 | 4 59 65 58 23 70 Regions Visited 5 Branch Regions 3 Pre-discovered Areas 1 | . . . . . 1 Known Exits Taken . | . . . . . . Unknown Exits Taken 5 | 1 1 1 1 1 . Scrap Searched 1 | . . 1 . . . Spaces Dug . | . . . . . . Terrain Destroyed 80 | . 8 12 35 . 25 Melee . | . . . . . . Projectile . | . . . . . . AOE 80 | . 8 12 35 . 25 Terrain Rammed . | . . . . . . Walls Destroyed . | . . . . . . Machines Disabled . | . . . . . . Actions | -11 -10 -10 -9 -9 -9 --------- Run | Scr Mat Min Mat Min Exi Total 2437 | 52 442 213 805 124 801 Wait 85 | . 21 . 36 . 28 Move 2080 | 42 374 202 658 124 680 Hop . | . . . . . . Pick Up 32 | 3 11 . 8 . 10 Fast Attach 15 | 6 3 1 5 . . Attach 9 | . . . 4 . 5 Detach 6 | . 2 1 2 . 1 Swap 21 | . 3 3 11 . 4 Drop 25 | 1 3 . 13 . 8 Fire 126 | . 24 6 68 . 28 Melee 37 | . . . . . 37 Ram . | . . . . . . Kick . | . . . . . . Crush . | . . . . . . Escape Stasis . | . . . . . . Rewire 1 | . 1 . . . . Trap . | . . . . . . Miscellaneous . | . . . . . . Route ------- -11/Scrapyard -10/Materials (discovered 3 exits: *Mat x2 / [*Min]) -10/Mines -9/Materials (discovered 3 exits: [*Mat x2] / [*Min]) -9/Mines -9/Exiles (discovered 1 exit: [*Min]) History --------- Turn | Location | Event 6 | -11/Scrapyard | Discovered new exit (range 15) 78 | -11/Scrapyard | Entered Materials 276 | -10/Materials | Discovered new exit (range 11) 307 | -10/Materials | Build established: Mutant 516 | -10/Materials | Discovered new exit (range 6) 599 | -10/Materials | Discovered new exit (range 8) 792 | -10/Materials | Entered Mines 816 | -10/Mines | Found a damaged Exp. Sensor Array with a note attached 823 | -10/Mines | Found Prototype Device 823 | -10/Mines | Identified Exp. Sensor Array 982 | -10/Mines | Discovered new exit (range 7) 1138 | -10/Mines | Entered Materials 1138 | -9/Materials | Evolved 2 slots: Utility x2 1248 | -9/Materials | Discovered new exit (range 14) 1682 | -9/Materials | Discovered new exit (range 6) 1903 | -9/Materials | Discovered new exit (range 3) 2476 | -9/Materials | Entered Mines 2483 | -9/Mines | Met a Derelict bent on vengeance 2504 | -9/Mines | Learned location of 1 exit from Materials 2556 | -9/Mines | Learned Materials trap positions 2668 | -9/Mines | Deemed a non-threat by the Exiles lab entrance 2668 | -9/Mines | Discovered new exit (range 5) 2675 | -9/Mines | Entered Exiles 2715 | -9/Exiles | Met 8R-AWN 2741 | -9/Exiles | Met EX-HEX 2810 | -9/Exiles | Met EX-DEC 2839 | -9/Exiles | Learned location of Zion (-6) 2949 | -9/Exiles | Discovered new exit (range 14) 3050 | -9/Exiles | Met EX-BIN 3143 | -9/Exiles | Aligned with FarCom system 3145 | -9/Exiles | Given EX-Vault access code 3186 | -9/Exiles | Opened EX-Vault 3198 | -9/Exiles | Found Longsword +1 3229 | -9/Exiles | Warned to stay clear of 0b10 Research branches 3626 | -9/Exiles | Attacked by the Exiles 3725 | -9/Exiles | Core integrity fell below 50% 3787 | -9/Exiles | Destroyed 8R-AWN 3791 | -9/Exiles | Lost 3 parts (1n2u) 3798 | -9/Exiles | Found Prototype Processor 3941 | -9/Exiles | Core integrity fell below 20% 3946 | -9/Exiles | Destroyed by DAS Turret with DAS Cannon Last Messages --------------- 03763_ Penetrated by HV Slug. 03779_ Destroyed Prototype Protection. 03779_ Penetrated by HV Slug. 03781_ 8R-AWN Rnf. Fission Core severed. 03784_ Penetrated by HV Slug. 03787_ 8R-AWN destroyed. 03788_ Acquired 101 matter. 03794_ Acquired Adv. Weapon Cycler. 03798_ Acquired Prototype Processor. 03805_ Acquired Rnf. Fission Core. 03824_ Acquired Adv. Beam Cannon. 03847_ Acquired Exp. Sensor Array. 03899_ Acquired 12 matter. 03906_ Machine disabled. 03938_ Cld. Ion Engine destroyed. 03938_ Destroyed Cld. Ion Engine. 03939_ Grenade Launcher destroyed. 03939_ Imp. Treads destroyed. 03940_ Heat Sink destroyed. 03940_ Critical hit (Blast). Map ----- +----------------------------------------------------+ | ????????????????????????????????????#" ## | | ????????????????????????????????????#""""""?# | | ????????????????????????????????????##"###??# | | ????????????????????????????????????????????# | | ????????????????????????????????????????????# | | ???????????????????????????????????????????## | | ???????????#######?????????????????????????#" | | #####??????#!!! "#?????????????????????????#" | | #""##?????# "#?????????????????????????#" | | #?????# "#?????????????????????????#" | | ##???## " ##????????????#???????????#" | | #####" "#??????????? ""?????????#" | | ##" " # ##?????????" """#???????## | | #"" #"## #?????????" ?????????# | | # ###??????"" ?????????#" | | #### ] ## # #??????"" "#????????#" | | ???### #??????? ""?????????#" | | #####" # #????????" "?????????##" | | !""""" ###??????# #????????##"" | | #" ;;##???### ###?######"" | | "#### "#####X# #"###""""""" | | ##??# """""" " "" | | """" "###???#"# "" """ " | | ###"##??????#### % " " | | ?# #???????????#"# %% | | # #????????????# ### @ | | ##?????????????# #?## | | ???????????????# #??## | | ???????????????# #???##" | | ???????????????# #????# """""" | | ???????????????# #???# ######""" | | ???????????????? #???# ""##????#### | | ???????????????? ????#" """##????????? | | ???????????????? ???#""" ""##?????????? | | ????????????????#???#""" ""#??????????? | | ????????????????????#"" ########??### | | ????????????????????#"""t ## ####"" | | ????????????????????#"" """" | | ????????????????????##"" | | ?????????????????????#"""" | | ??????????????????????# | | ??????????????????????#" " | | ??????????????????????#"""" ""## ## | | ??????????????????????#"" ""#### ## | | ???????????????????????" """"##??# #? | | ???????????????????????""" """#???# #? | | ???????????????????????? ""##??#! " | | ????????????????????????"" """##???#" | | ?????????????????????????""" #?????#" | | ???????????????????????????""" #??????#!!""! | +----------------------------------------------------+ Best States ------------- Heat Dissipation 48 Energy Generation 14 Energy Capacity 280 Matter Stores 300 Matter Capacity 300 Sight Range 16 Terrain Scan Density 10 Armor Coverage 600 Evasion (%) 40 Recoil Reduction 2 Item Schematics ----------------- None Robot Schematics ------------------ None Fabricated ------------ Nothing Alien Tech Used ----------------- None Achievements -------------- None Challenges ------------ None Game ------ Seed ExplosiveSupersonicWarhead Manual? 0 Play Time 00:19:58 Cumulative 233.7 hours Start 2021.09.19 @ 18:22:33 End 2021.09.19 @ 18:39:56 Sessions 1 Manual Loads 0 Difficulty Rogue Special Mode None Game No. 301 Rogue 214 Adventurer 87 Explorer 0 Win Type - Total 5 Types 3/0/1/1/0/0/0/0/0 Lore% 71 Gallery% 79 Achievement% 67 Wizard Run 0 Options --------- ASCII 0 Keyboard 0 Movement Numpad Keybinds 0 Fullscreen 1 Font 18/Smallcaps Map View 76x50 Tactical HUD 1 Map Filters NONE Filters NONE Steam 1 RUN: cbb77be9-c977-4eb2-8bc9-741cc0d285e8